[Event "December 5 Late 2023"]
[Site "https://www.chess.com"]
[Date "2023.12.05"]
[Round "5"]
[White "Lin, Bryan Enming"]
[Black "Chlpik, Martin"]
[Result "1-0"]
[Board "101"]
[TimeControl "180+1"]
[WhiteFideId "30987121"]
[BlackFideId "14923351"]
[WhiteElo "2498"]
[BlackElo "2267"]
[WhiteTeam "USA"]
[BlackTeam "SVK"]
[WhiteClock "0:02:36"]
[BlackClock "0:01:50"]

1. e4 {[%clk 0:02:58]}  c5 {[%clk 0:02:59]} 2. Nf3 {[%clk 0:02:58]}  d6 {[%clk 0:03:00]} 3. d4 {[%clk 0:02:58]}  cxd4 {[%clk 0:03:01]} 4. Nxd4 {[%clk 0:02:59]}  Nf6 {[%clk 0:03:01]} 5. Nc3 {[%clk 0:02:59]}  a6 {[%clk 0:03:02]} 6. h3 {[%clk 0:03:00]}  e6 {[%clk 0:03:02]} 7. g4 {[%clk 0:03:00]}  b5 {[%clk 0:03:02]} 8. Bg2 {[%clk 0:02:58]}  Bb7 {[%clk 0:03:02]} 9. g5 {[%clk 0:02:51]}  Nfd7 {[%clk 0:03:02]} 10. O-O {[%clk 0:02:51]}  Be7 {[%clk 0:03:01]} 11. a4 {[%clk 0:02:50]}  b4 {[%clk 0:03:01]} 12. Na2 {[%clk 0:02:49]}  Bxg5 {[%clk 0:02:45]} 13. Nxe6 {[%clk 0:02:49]}  fxe6 {[%clk 0:02:41]} 14. Qh5+ {[%clk 0:02:48]}  g6 {[%clk 0:02:41]} 15. Qxg5 {[%clk 0:02:49]}  Qxg5 {[%clk 0:02:38]} 16. Bxg5 {[%clk 0:02:50]}  Nc6 {[%clk 0:02:37]} 17. Rad1 {[%clk 0:02:42]}  d5 {[%clk 0:02:21]} 18. exd5 {[%clk 0:02:42]}  Nce5 {[%clk 0:02:22]} 19. Rfe1 {[%clk 0:02:40]}  O-O {[%clk 0:02:21]} 20. dxe6 {[%clk 0:02:39]}  Bxg2 {[%clk 0:02:18]} 21. Kxg2 {[%clk 0:02:38]}  Nf3 {[%clk 0:02:06]} 22. exd7 {[%clk 0:02:36]}  Nxg5 {[%clk 0:01:50]} 23. Nxb4 {[%clk 0:02:36]} 1-0

[Event "December 5 Late 2023"]
[Site "https://www.chess.com"]
[Date "2023.12.05"]
[Round "5"]
[White "Dobre, Claudiu-Cristian"]
[Black "Wieczorek, Zbigniew"]
[Result "1/2-1/2"]
[Board "102"]
[TimeControl "180+1"]
[WhiteFideId "1211854"]
[BlackFideId "1102001"]
[WhiteElo "2496"]
[BlackElo "2220"]
[WhiteTeam "ROU"]
[BlackTeam "POL"]
[WhiteClock "0:00:09"]
[BlackClock "0:00:11"]

1. d4 {[%clk 0:03:00]}  Nf6 {[%clk 0:02:57]} 2. Nf3 {[%clk 0:03:01]}  d5 {[%clk 0:02:54]} 3. e3 {[%clk 0:03:01]}  e6 {[%clk 0:02:54]} 4. Nbd2 {[%clk 0:03:00]}  Be7 {[%clk 0:02:53]} 5. Bd3 {[%clk 0:03:01]}  O-O {[%clk 0:02:53]} 6. Qe2 {[%clk 0:03:00]}  c5 {[%clk 0:02:53]} 7. c3 {[%clk 0:02:59]}  b6 {[%clk 0:02:50]} 8. e4 {[%clk 0:02:58]}  dxe4 {[%clk 0:02:48]} 9. Nxe4 {[%clk 0:02:57]}  Bb7 {[%clk 0:02:46]} 10. dxc5 {[%clk 0:02:48]}  bxc5 {[%clk 0:02:37]} 11. O-O {[%clk 0:02:30]}  Qb6 {[%clk 0:02:29]} 12. Nfd2 {[%clk 0:02:25]}  Nxe4 {[%clk 0:01:55]} 13. Bxe4 {[%clk 0:02:16]}  Bxe4 {[%clk 0:01:40]} 14. Qxe4 {[%clk 0:02:14]}  Qc6 {[%clk 0:01:40]} 15. Qxc6 {[%clk 0:01:59]}  Nxc6 {[%clk 0:01:39]} 16. Nc4 {[%clk 0:01:59]}  Rfd8 {[%clk 0:01:33]} 17. f4 {[%clk 0:01:50]}  f6 {[%clk 0:01:30]} 18. Re1 {[%clk 0:01:48]}  Kf7 {[%clk 0:01:31]} 19. Be3 {[%clk 0:01:46]}  Rd3 {[%clk 0:01:29]} 20. Re2 {[%clk 0:01:43]}  Rad8 {[%clk 0:01:27]} 21. Kf2 {[%clk 0:01:40]}  Rd1 {[%clk 0:01:14]} 22. Rxd1 {[%clk 0:01:38]}  Rxd1 {[%clk 0:01:14]} 23. Rd2 {[%clk 0:01:33]}  Rxd2+ {[%clk 0:01:13]} 24. Nxd2 {[%clk 0:01:29]}  Na5 {[%clk 0:01:05]} 25. b3 {[%clk 0:01:28]}  Nb7 {[%clk 0:00:54]} 26. Ke2 {[%clk 0:01:21]}  Ke8 {[%clk 0:00:51]} 27. Kd3 {[%clk 0:01:18]}  Kd7 {[%clk 0:00:52]} 28. Ne4 {[%clk 0:01:12]}  Kc6 {[%clk 0:00:51]} 29. a3 {[%clk 0:00:55]}  a6 {[%clk 0:00:48]} 30. b4 {[%clk 0:00:53]}  cxb4 {[%clk 0:00:39]} 31. cxb4 {[%clk 0:00:51]}  a5 {[%clk 0:00:22]} 32. Kc4 {[%clk 0:00:50]}  axb4 {[%clk 0:00:18]} 33. axb4 {[%clk 0:00:50]}  f5 {[%clk 0:00:18]} 34. Nc3 {[%clk 0:00:32]}  Nd6+ {[%clk 0:00:17]} 35. Kb3 {[%clk 0:00:32]}  Nb5 {[%clk 0:00:16]} 36. Nxb5 {[%clk 0:00:11]}  Kxb5 {[%clk 0:00:15]} 37. Bd2 {[%clk 0:00:11]}  Bf6 {[%clk 0:00:13]} 38. g3 {[%clk 0:00:10]}  e5 {[%clk 0:00:12]} 39. fxe5 {[%clk 0:00:09]}  Bxe5 {[%clk 0:00:12]} 40. Bc3 {[%clk 0:00:10]}  Bxc3 {[%clk 0:00:05]} 41. Kxc3 {[%clk 0:00:10]}  g5 {[%clk 0:00:06]} 42. Kb3 {[%clk 0:00:07]}  h5 {[%clk 0:00:03]} 43. Kc3 {[%clk 0:00:07]}  h4 {[%clk 0:00:03]} 44. gxh4 {[%clk 0:00:06]}  gxh4 {[%clk 0:00:03]} 45. h3 {[%clk 0:00:06]}  f4 {[%clk 0:00:02]} 46. Kd4 {[%clk 0:00:06]}  Kxb4 {[%clk 0:00:03]} 47. Ke4 {[%clk 0:00:07]}  Kc4 {[%clk 0:00:04]} 48. Kxf4 {[%clk 0:00:07]}  Kd4 {[%clk 0:00:04]} 49. Kg4 {[%clk 0:00:07]}  Ke5 {[%clk 0:00:05]} 50. Kxh4 {[%clk 0:00:07]}  Kf6 {[%clk 0:00:06]} 51. Kh5 {[%clk 0:00:07]}  Kg7 {[%clk 0:00:07]} 52. Kg5 {[%clk 0:00:07]}  Kh8 {[%clk 0:00:07]} 53. h4 {[%clk 0:00:08]}  Kg8 {[%clk 0:00:08]} 54. h5 {[%clk 0:00:08]}  Kh8 {[%clk 0:00:08]} 55. Kh6 {[%clk 0:00:08]}  Kg8 {[%clk 0:00:09]} 56. Kg6 {[%clk 0:00:09]}  Kh8 {[%clk 0:00:10]} 57. h6 {[%clk 0:00:09]}  Kg8 {[%clk 0:00:10]} 58. h7+ {[%clk 0:00:09]}  Kh8 {[%clk 0:00:11]} 59. Kh6 {[%clk 0:00:09]} 1/2-1/2

[Event "December 5 Late 2023"]
[Site "https://www.chess.com"]
[Date "2023.12.05"]
[Round "5"]
[White "Bold, Andre"]
[Black "Jing, Andrew"]
[Result "1-0"]
[Board "103"]
[TimeControl "180+1"]
[WhiteFideId "16208471"]
[BlackFideId "30984076"]
[WhiteElo "2494"]
[BlackElo "2219"]
[WhiteTeam "GER"]
[BlackTeam "USA"]
[WhiteClock "0:00:15"]
[BlackClock "0:00:35"]

1. Nf3 {[%clk 0:03:00]}  Nf6 {[%clk 0:02:58]} 2. e3 {[%clk 0:03:01]}  g6 {[%clk 0:02:58]} 3. b3 {[%clk 0:03:00]}  Bg7 {[%clk 0:02:59]} 4. Bb2 {[%clk 0:03:01]}  O-O {[%clk 0:03:00]} 5. Be2 {[%clk 0:03:01]}  d6 {[%clk 0:03:00]} 6. d4 {[%clk 0:03:00]}  Nc6 {[%clk 0:02:57]} 7. O-O {[%clk 0:03:00]}  Re8 {[%clk 0:02:55]} 8. Na3 {[%clk 0:02:47]}  a6 {[%clk 0:02:54]} 9. c4 {[%clk 0:02:40]}  Nd7 {[%clk 0:02:51]} 10. Nc2 {[%clk 0:02:34]}  e5 {[%clk 0:02:50]} 11. dxe5 {[%clk 0:02:19]}  Ndxe5 {[%clk 0:02:51]} 12. Nxe5 {[%clk 0:02:17]}  Nxe5 {[%clk 0:02:51]} 13. Nd4 {[%clk 0:02:15]}  c5 {[%clk 0:02:50]} 14. Nc2 {[%clk 0:02:13]}  Nf3+ {[%clk 0:02:48]} 15. Bxf3 {[%clk 0:02:11]}  Bxb2 {[%clk 0:02:49]} 16. Rb1 {[%clk 0:02:12]}  Bg7 {[%clk 0:02:49]} 17. Bd5 {[%clk 0:01:50]}  Qc7 {[%clk 0:02:44]} 18. Qf3 {[%clk 0:01:47]}  Rb8 {[%clk 0:02:41]} 19. Rfd1 {[%clk 0:01:45]}  Be6 {[%clk 0:02:40]} 20. Rd3 {[%clk 0:01:42]}  Bf5 {[%clk 0:02:35]} 21. e4 {[%clk 0:01:41]}  Be6 {[%clk 0:02:34]} 22. Rbd1 {[%clk 0:01:41]}  Bxd5 {[%clk 0:02:29]} 23. Rxd5 {[%clk 0:01:40]}  Rbd8 {[%clk 0:02:28]} 24. Ne3 {[%clk 0:01:37]}  b5 {[%clk 0:02:25]} 25. g3 {[%clk 0:01:35]}  Qb6 {[%clk 0:02:21]} 26. Kg2 {[%clk 0:01:34]}  Re6 {[%clk 0:02:15]} 27. R5d2 {[%clk 0:01:08]}  Qc6 {[%clk 0:02:12]} 28. Nd5 {[%clk 0:01:06]}  Bf8 {[%clk 0:02:07]} 29. Qd3 {[%clk 0:01:02]}  Qb7 {[%clk 0:01:55]} 30. f4 {[%clk 0:01:02]}  Bg7 {[%clk 0:01:51]} 31. f5 {[%clk 0:01:02]}  Ree8 {[%clk 0:01:49]} 32. f6 {[%clk 0:00:58]}  Bf8 {[%clk 0:01:48]} 33. h4 {[%clk 0:00:56]}  h5 {[%clk 0:01:42]} 34. Re2 {[%clk 0:00:53]}  Re5 {[%clk 0:01:39]} 35. Qf3 {[%clk 0:00:51]}  Rde8 {[%clk 0:01:38]} 36. Rf1 {[%clk 0:00:37]}  a5 {[%clk 0:01:34]} 37. Qd3 {[%clk 0:00:29]}  b4 {[%clk 0:01:30]} 38. Rf4 {[%clk 0:00:22]}  Qa8 {[%clk 0:01:29]} 39. g4 {[%clk 0:00:22]}  a4 {[%clk 0:01:27]} 40. gxh5 {[%clk 0:00:21]}  Rxh5 {[%clk 0:01:28]} 41. Qg3 {[%clk 0:00:19]}  Kh7 {[%clk 0:01:24]} 42. Rg4 {[%clk 0:00:19]}  Bh6 {[%clk 0:01:23]} 43. Ne7 {[%clk 0:00:14]}  axb3 {[%clk 0:01:11]} 44. axb3 {[%clk 0:00:14]}  Qa1 {[%clk 0:01:10]} 45. Qxd6 {[%clk 0:00:13]}  Bf8 {[%clk 0:01:01]} 46. Qf4 {[%clk 0:00:11]}  Bxe7 {[%clk 0:01:00]} 47. fxe7 {[%clk 0:00:12]}  Rxe7 {[%clk 0:01:01]} 48. Rg5 {[%clk 0:00:11]}  Rxg5+ {[%clk 0:01:01]} 49. hxg5 {[%clk 0:00:12]}  Kg7 {[%clk 0:01:00]} 50. e5 {[%clk 0:00:11]}  Re6 {[%clk 0:00:58]} 51. Re3 {[%clk 0:00:10]}  Qb2+ {[%clk 0:00:57]} 52. Kg3 {[%clk 0:00:10]}  Qc1 {[%clk 0:00:57]} 53. Kf3 {[%clk 0:00:09]}  Qf1+ {[%clk 0:00:57]} 54. Ke4 {[%clk 0:00:09]}  Qg2+ {[%clk 0:00:57]} 55. Kd3 {[%clk 0:00:08]}  Re8 {[%clk 0:00:55]} 56. Qf6+ {[%clk 0:00:06]}  Kg8 {[%clk 0:00:54]} 57. e6 {[%clk 0:00:05]}  Rxe6 {[%clk 0:00:53]} 58. Rxe6 {[%clk 0:00:06]}  fxe6 {[%clk 0:00:53]} 59. Qxg6+ {[%clk 0:00:06]}  Kf8 {[%clk 0:00:52]} 60. Qf6+ {[%clk 0:00:07]}  Kg8 {[%clk 0:00:53]} 61. Qxe6+ {[%clk 0:00:07]}  Kg7 {[%clk 0:00:53]} 62. Qf6+ {[%clk 0:00:08]}  Kg8 {[%clk 0:00:53]} 63. Qe6+ {[%clk 0:00:07]}  Kg7 {[%clk 0:00:53]} 64. Qe5+ {[%clk 0:00:08]}  Kg6 {[%clk 0:00:46]} 65. Qd6+ {[%clk 0:00:08]}  Kh5 {[%clk 0:00:42]} 66. Qxc5 {[%clk 0:00:07]}  Qf1+ {[%clk 0:00:42]} 67. Kd4 {[%clk 0:00:07]}  Qf2+ {[%clk 0:00:42]} 68. Kd5 {[%clk 0:00:07]}  Qf3+ {[%clk 0:00:42]} 69. Kd6 {[%clk 0:00:07]}  Qxb3 {[%clk 0:00:41]} 70. Ke7 {[%clk 0:00:04]}  Qc3 {[%clk 0:00:37]} 71. Kf7 {[%clk 0:00:03]}  Qf3+ {[%clk 0:00:36]} 72. Kg7 {[%clk 0:00:03]}  Qc3+ {[%clk 0:00:34]} 73. Kh7 {[%clk 0:00:03]}  Kh4 {[%clk 0:00:31]} 74. g6 {[%clk 0:00:04]}  b3 {[%clk 0:00:31]} 75. g7 {[%clk 0:00:04]}  b2 {[%clk 0:00:31]} 76. Qe7+ {[%clk 0:00:05]}  Kh3 {[%clk 0:00:30]} 77. Qe6+ {[%clk 0:00:05]}  Kh2 {[%clk 0:00:31]} 78. Qd6+ {[%clk 0:00:05]}  Kh1 {[%clk 0:00:30]} 79. Qd1+ {[%clk 0:00:06]}  Kh2 {[%clk 0:00:29]} 80. g8=Q {[%clk 0:00:06]}  Qc1 {[%clk 0:00:27]} 81. Qb8+ {[%clk 0:00:06]}  Kh3 {[%clk 0:00:26]} 82. Qc8+ {[%clk 0:00:06]}  Kh2 {[%clk 0:00:26]} 83. Qc7+ {[%clk 0:00:06]}  Kh3 {[%clk 0:00:26]} 84. Qcd7+ {[%clk 0:00:07]}  Kh2 {[%clk 0:00:27]} 85. Q7d6+ {[%clk 0:00:07]}  Kh3 {[%clk 0:00:27]} 86. Qe6+ {[%clk 0:00:07]}  Kh2 {[%clk 0:00:28]} 87. Qe5+ {[%clk 0:00:08]}  Kh3 {[%clk 0:00:28]} 88. Qf5+ {[%clk 0:00:08]}  Kh2 {[%clk 0:00:29]} 89. Qfc2+ {[%clk 0:00:07]}  Kh3 {[%clk 0:00:27]} 90. Qcxc1 {[%clk 0:00:07]}  bxc1=Q {[%clk 0:00:28]} 91. Qxc1 {[%clk 0:00:08]}  Kh2 {[%clk 0:00:28]} 92. c5 {[%clk 0:00:09]}  Kg2 {[%clk 0:00:29]} 93. c6 {[%clk 0:00:10]}  Kh2 {[%clk 0:00:30]} 94. c7 {[%clk 0:00:11]}  Kg2 {[%clk 0:00:31]} 95. Kg6 {[%clk 0:00:12]}  Kh2 {[%clk 0:00:32]} 96. Kf5 {[%clk 0:00:12]}  Kg2 {[%clk 0:00:33]} 97. Ke5 {[%clk 0:00:13]}  Kh2 {[%clk 0:00:33]} 98. Qf4+ {[%clk 0:00:14]}  Kg2 {[%clk 0:00:34]} 99. Ke4 {[%clk 0:00:14]}  Kh1 {[%clk 0:00:34]} 100. Qg5 {[%clk 0:00:14]}  Kh2 {[%clk 0:00:34]} 101. Kf3 {[%clk 0:00:15]}  Kh1 {[%clk 0:00:35]} 102. Qg2# {[%clk 0:00:15]} 1-0

[Event "December 5 Late 2023"]
[Site "https://www.chess.com"]
[Date "2023.12.05"]
[Round "5"]
[White "Minko, Dmitry"]
[Black "Keller, Peter"]
[Result "1-0"]
[Board "104"]
[TimeControl "180+1"]
[WhiteFideId "24188468"]
[BlackFideId "1272105"]
[WhiteElo "2486"]
[BlackElo "2201"]
[WhiteTeam "FID"]
[BlackTeam "GER"]
[WhiteClock "0:00:19"]
[BlackClock "0:00:09"]

1. e4 {[%clk 0:03:00]}  c5 {[%clk 0:00:26]} 2. Nf3 {[%clk 0:03:00]}  Nc6 {[%clk 0:00:26]} 3. d4 {[%clk 0:03:00]}  cxd4 {[%clk 0:00:26]} 4. Nxd4 {[%clk 0:03:01]}  e6 {[%clk 0:00:26]} 5. Nxc6 {[%clk 0:03:01]}  bxc6 {[%clk 0:00:26]} 6. Bd3 {[%clk 0:03:02]}  d5 {[%clk 0:00:26]} 7. e5 {[%clk 0:02:58]}  Ba6 {[%clk 0:00:26]} 8. O-O {[%clk 0:02:58]}  Bxd3 {[%clk 0:00:26]} 9. Qxd3 {[%clk 0:02:59]}  Ne7 {[%clk 0:00:26]} 10. Bg5 {[%clk 0:02:47]}  Qb6 {[%clk 0:00:25]} 11. Bxe7 {[%clk 0:02:37]}  Bxe7 {[%clk 0:00:25]} 12. b3 {[%clk 0:02:32]}  O-O {[%clk 0:00:26]} 13. Nd2 {[%clk 0:02:31]}  f6 {[%clk 0:00:24]} 14. Rae1 {[%clk 0:02:27]}  Rae8 {[%clk 0:00:24]} 15. Kh1 {[%clk 0:02:25]}  fxe5 {[%clk 0:00:23]} 16. Rxe5 {[%clk 0:02:22]}  Bd6 {[%clk 0:00:24]} 17. Re2 {[%clk 0:02:21]}  e5 {[%clk 0:00:24]} 18. c4 {[%clk 0:02:16]}  e4 {[%clk 0:00:22]} 19. Nxe4 {[%clk 0:02:15]}  Rxe4 {[%clk 0:00:18]} 20. Rxe4 {[%clk 0:02:16]}  dxe4 {[%clk 0:00:18]} 21. Qxd6 {[%clk 0:02:16]}  e3 {[%clk 0:00:17]} 22. Qe6+ {[%clk 0:02:11]}  Kh8 {[%clk 0:00:17]} 23. Qe7 {[%clk 0:02:12]}  Kg8 {[%clk 0:00:08]} 24. c5 {[%clk 0:02:11]}  Qb5 {[%clk 0:00:07]} 25. Qe6+ {[%clk 0:01:18]}  Kh8 {[%clk 0:00:05]} 26. Qc4 {[%clk 0:01:19]}  Qxc4 {[%clk 0:00:04]} 27. bxc4 {[%clk 0:01:20]}  Rxf2 {[%clk 0:00:05]} 28. Kg1 {[%clk 0:01:19]}  e2 {[%clk 0:00:01]} 29. Kxf2 {[%clk 0:01:18]}  exf1=Q+ {[%clk 0:00:02]} 30. Kxf1 {[%clk 0:01:19]}  Kg8 {[%clk 0:00:02]} 31. Ke2 {[%clk 0:01:17]}  Kf7 {[%clk 0:00:02]} 32. Ke3 {[%clk 0:01:17]}  Ke6 {[%clk 0:00:03]} 33. Ke4 {[%clk 0:01:17]}  a5 {[%clk 0:00:03]} 34. g4 {[%clk 0:01:13]}  g5 {[%clk 0:00:03]} 35. h3 {[%clk 0:00:27]}  Kf6 {[%clk 0:00:03]} 36. Kd4 {[%clk 0:00:23]}  Ke6 {[%clk 0:00:03]} 37. Kc3 {[%clk 0:00:23]}  Ke5 {[%clk 0:00:04]} 38. Kb3 {[%clk 0:00:24]}  Kf4 {[%clk 0:00:05]} 39. Ka4 {[%clk 0:00:25]}  Kg3 {[%clk 0:00:06]} 40. Kxa5 {[%clk 0:00:26]}  Kxh3 {[%clk 0:00:06]} 41. Kb6 {[%clk 0:00:27]}  Kxg4 {[%clk 0:00:07]} 42. a4 {[%clk 0:00:27]}  Kf4 {[%clk 0:00:07]} 43. a5 {[%clk 0:00:28]}  g4 {[%clk 0:00:08]} 44. a6 {[%clk 0:00:29]}  g3 {[%clk 0:00:08]} 45. a7 {[%clk 0:00:30]}  g2 {[%clk 0:00:09]} 46. a8=Q {[%clk 0:00:31]}  g1=Q {[%clk 0:00:10]} 47. Qf8+ {[%clk 0:00:26]}  Ke3 {[%clk 0:00:10]} 48. Qe7+ {[%clk 0:00:25]}  Kd3 {[%clk 0:00:10]} 49. Qxh7+ {[%clk 0:00:23]}  Kxc4 {[%clk 0:00:10]} 50. Qe4+ {[%clk 0:00:23]}  Kb3 {[%clk 0:00:10]} 51. Kxc6 {[%clk 0:00:20]}  Qg5 {[%clk 0:00:09]} 52. Qd5+ {[%clk 0:00:19]}  Qxd5+ {[%clk 0:00:09]} 53. Kxd5 {[%clk 0:00:20]}  Kb4 {[%clk 0:00:09]} 54. c6 {[%clk 0:00:19]} 1-0

[Event "December 5 Late 2023"]
[Site "https://www.chess.com"]
[Date "2023.12.05"]
[Round "5"]
[White "Al-Saffar, Araz Basim Mohammed S"]
[Black "Manukyan, Sargis A."]
[Result "0-1"]
[Board "108"]
[TimeControl "180+1"]
[WhiteFideId "4801040"]
[BlackFideId "13303970"]
[WhiteElo "2387"]
[BlackElo "2576"]
[WhiteTeam "IRQ"]
[BlackTeam "ARM"]
[WhiteClock "0:00:14"]
[BlackClock "0:00:18"]

1. Nf3 {[%clk 0:02:59]}  d5 {[%clk 0:02:59]} 2. g3 {[%clk 0:02:59]}  Nf6 {[%clk 0:02:58]} 3. Bg2 {[%clk 0:02:59]}  e6 {[%clk 0:02:59]} 4. O-O {[%clk 0:02:59]}  Be7 {[%clk 0:03:00]} 5. c4 {[%clk 0:02:59]}  O-O {[%clk 0:03:01]} 6. b3 {[%clk 0:02:59]}  c5 {[%clk 0:02:57]} 7. cxd5 {[%clk 0:02:59]}  exd5 {[%clk 0:02:56]} 8. d4 {[%clk 0:02:59]}  Nc6 {[%clk 0:02:55]} 9. Bb2 {[%clk 0:02:58]}  Be6 {[%clk 0:02:53]} 10. Nc3 {[%clk 0:02:51]}  a6 {[%clk 0:02:49]} 11. Rc1 {[%clk 0:02:48]}  Rc8 {[%clk 0:02:48]} 12. dxc5 {[%clk 0:02:39]}  Bxc5 {[%clk 0:02:48]} 13. Na4 {[%clk 0:02:40]}  Ba7 {[%clk 0:02:46]} 14. Nc5 {[%clk 0:02:37]}  Ne4 {[%clk 0:02:40]} 15. Nxe4 {[%clk 0:02:14]}  dxe4 {[%clk 0:02:39]} 16. Qxd8 {[%clk 0:02:14]}  Rfxd8 {[%clk 0:02:38]} 17. Ng5 {[%clk 0:02:14]}  e3 {[%clk 0:02:35]} 18. f4 {[%clk 0:02:03]}  Bg4 {[%clk 0:02:26]} 19. Bf3 {[%clk 0:01:53]}  Bxf3 {[%clk 0:02:20]} 20. Nxf3 {[%clk 0:01:54]}  Nb4 {[%clk 0:02:19]} 21. Rxc8 {[%clk 0:01:50]}  Rxc8 {[%clk 0:02:19]} 22. a3 {[%clk 0:01:48]}  Nc6 {[%clk 0:02:00]} 23. Rc1 {[%clk 0:01:44]}  f6 {[%clk 0:01:59]} 24. Bd4 {[%clk 0:01:27]}  Rd8 {[%clk 0:01:47]} 25. Bxa7 {[%clk 0:01:26]}  Nxa7 {[%clk 0:01:48]} 26. Rc3 {[%clk 0:01:26]}  Nb5 {[%clk 0:01:45]} 27. Rxe3 {[%clk 0:01:26]}  Nxa3 {[%clk 0:01:45]} 28. Re7 {[%clk 0:01:26]}  b5 {[%clk 0:01:44]} 29. Ra7 {[%clk 0:01:22]}  Rd6 {[%clk 0:01:44]} 30. Kf2 {[%clk 0:01:17]}  Nb1 {[%clk 0:01:43]} 31. e4 {[%clk 0:01:13]}  Nc3 {[%clk 0:01:34]} 32. e5 {[%clk 0:01:10]}  fxe5 {[%clk 0:01:34]} 33. Nxe5 {[%clk 0:01:09]}  h6 {[%clk 0:01:30]} 34. f5 {[%clk 0:01:02]}  Rd5 {[%clk 0:01:24]} 35. Re7 {[%clk 0:00:54]}  h5 {[%clk 0:01:04]} 36. Ke3 {[%clk 0:00:50]}  a5 {[%clk 0:01:01]} 37. Kf4 {[%clk 0:00:44]}  a4 {[%clk 0:00:34]} 38. Re8+ {[%clk 0:00:35]}  Kh7 {[%clk 0:00:33]} 39. Nf7 {[%clk 0:00:31]}  g6 {[%clk 0:00:20]} 40. f6 {[%clk 0:00:30]}  Rf5+ {[%clk 0:00:19]} 41. Ke3 {[%clk 0:00:28]}  Nd5+ {[%clk 0:00:18]} 42. Kd4 {[%clk 0:00:26]}  Nxf6 {[%clk 0:00:19]} 43. Re7 {[%clk 0:00:26]}  Rd5+ {[%clk 0:00:09]} 44. Kc3 {[%clk 0:00:23]}  Rd7 {[%clk 0:00:10]} 45. Ng5+ {[%clk 0:00:19]}  Kg8 {[%clk 0:00:10]} 46. Rxd7 {[%clk 0:00:17]}  Nxd7 {[%clk 0:00:10]} 47. bxa4 {[%clk 0:00:18]}  bxa4 {[%clk 0:00:10]} 48. Kb4 {[%clk 0:00:18]}  Nb6 {[%clk 0:00:10]} 49. Ne4 {[%clk 0:00:10]}  Kf7 {[%clk 0:00:09]} 50. Kb5 {[%clk 0:00:11]}  a3 {[%clk 0:00:07]} 51. Nc3 {[%clk 0:00:10]}  Nd5 {[%clk 0:00:05]} 52. Na2 {[%clk 0:00:08]}  Ne3 {[%clk 0:00:06]} 53. Kb4 {[%clk 0:00:08]}  Nf1 {[%clk 0:00:07]} 54. Kxa3 {[%clk 0:00:08]}  Nxh2 {[%clk 0:00:07]} 55. Kb4 {[%clk 0:00:08]}  Nf1 {[%clk 0:00:08]} 56. Kc4 {[%clk 0:00:09]}  Nxg3 {[%clk 0:00:09]} 57. Kd4 {[%clk 0:00:09]}  Nf5+ {[%clk 0:00:10]} 58. Ke5 {[%clk 0:00:09]}  Ne7 {[%clk 0:00:07]} 59. Nc3 {[%clk 0:00:08]}  Nc6+ {[%clk 0:00:07]} 60. Kd6 {[%clk 0:00:07]}  Nb4 {[%clk 0:00:07]} 61. Ke5 {[%clk 0:00:07]}  Nd3+ {[%clk 0:00:08]} 62. Ke4 {[%clk 0:00:06]}  Nf2+ {[%clk 0:00:08]} 63. Kf3 {[%clk 0:00:06]}  Ng4 {[%clk 0:00:08]} 64. Kf4 {[%clk 0:00:06]}  Kg7 {[%clk 0:00:04]} 65. Ne4 {[%clk 0:00:07]}  Kh6 {[%clk 0:00:05]} 66. Ng5 {[%clk 0:00:07]}  Nf6 {[%clk 0:00:04]} 67. Nf7+ {[%clk 0:00:07]}  Kg7 {[%clk 0:00:04]} 68. Ng5 {[%clk 0:00:08]}  Nd5+ {[%clk 0:00:04]} 69. Ke5 {[%clk 0:00:09]}  Ne7 {[%clk 0:00:04]} 70. Ne6+ {[%clk 0:00:08]}  Kh6 {[%clk 0:00:04]} 71. Kf6 {[%clk 0:00:08]}  Nd5+ {[%clk 0:00:05]} 72. Ke5 {[%clk 0:00:08]}  Ne3 {[%clk 0:00:04]} 73. Kf4 {[%clk 0:00:08]}  Ng4 {[%clk 0:00:03]} 74. Ng5 {[%clk 0:00:08]}  Nh2 {[%clk 0:00:03]} 75. Nf7+ {[%clk 0:00:08]}  Kg7 {[%clk 0:00:03]} 76. Ng5 {[%clk 0:00:08]}  Nf1 {[%clk 0:00:03]} 77. Ne6+ {[%clk 0:00:08]}  Kf6 {[%clk 0:00:04]} 78. Ng5 {[%clk 0:00:07]}  Nd2 {[%clk 0:00:03]} 79. Nh7+ {[%clk 0:00:07]}  Kg7 {[%clk 0:00:03]} 80. Ng5 {[%clk 0:00:07]}  Nb3 {[%clk 0:00:03]} 81. Ne6+ {[%clk 0:00:07]}  Kf6 {[%clk 0:00:03]} 82. Ng5 {[%clk 0:00:08]}  Nd4 {[%clk 0:00:03]} 83. Nh7+ {[%clk 0:00:08]}  Ke7 {[%clk 0:00:04]} 84. Ng5 {[%clk 0:00:08]}  Ne6+ {[%clk 0:00:04]} 85. Nxe6 {[%clk 0:00:07]}  Kxe6 {[%clk 0:00:05]} 86. Kg5 {[%clk 0:00:07]}  Kf7 {[%clk 0:00:06]} 87. Kh4 {[%clk 0:00:07]}  Kf6 {[%clk 0:00:06]} 88. Kg3 {[%clk 0:00:07]}  Kg5 {[%clk 0:00:07]} 89. Kh3 {[%clk 0:00:08]}  h4 {[%clk 0:00:07]} 90. Kg2 {[%clk 0:00:07]}  Kh5 {[%clk 0:00:08]} 91. Kh3 {[%clk 0:00:07]}  g5 {[%clk 0:00:09]} 92. Kh2 {[%clk 0:00:08]}  g4 {[%clk 0:00:10]} 93. Kg2 {[%clk 0:00:08]}  Kg5 {[%clk 0:00:11]} 94. Kh2 {[%clk 0:00:09]}  Kf4 {[%clk 0:00:12]} 95. Kg2 {[%clk 0:00:10]}  h3+ {[%clk 0:00:13]} 96. Kf2 {[%clk 0:00:11]}  Kg5 {[%clk 0:00:13]} 97. Kg1 {[%clk 0:00:12]}  Kh4 {[%clk 0:00:14]} 98. Kf2 {[%clk 0:00:13]}  g3+ {[%clk 0:00:15]} 99. Ke2 {[%clk 0:00:13]}  Kg4 {[%clk 0:00:15]} 100. Kf1 {[%clk 0:00:12]}  Kf3 {[%clk 0:00:15]} 101. Kg1 {[%clk 0:00:12]}  g2 {[%clk 0:00:15]} 102. Kh2 {[%clk 0:00:12]}  Kf2 {[%clk 0:00:16]} 103. Kxh3 {[%clk 0:00:13]}  g1=Q {[%clk 0:00:17]} 104. Kh4 {[%clk 0:00:14]}  Qg6 {[%clk 0:00:17]} 105. Kh3 {[%clk 0:00:14]}  Qg3# {[%clk 0:00:18]} 0-1